[Event "Titled Tuesday Blitz August 31 2021"]
[White "Karas, Marek"]
[Black "Materia, Marco"]
[WhiteFideId "14928558"]
[BlackFideId "45150451"]
[WhiteElo "2264"]
[BlackElo "2655"]
[Result "0-1"]
[Round "08"]
[TimeControl "180+1"]
[Date "2021.08.31"]
[WhiteClock "0:00:49"]
[BlackClock "0:02:02"]

1. d4 {[%clk 0:03:00]}  Nf6 {[%clk 0:02:59]} 2. Nf3 {[%clk 0:02:55]}  e6 {[%clk 0:02:59]} 3. c4 {[%clk 0:02:55]}  d5 {[%clk 0:02:56]} 4. g3 {[%clk 0:02:52]}  Bb4+ {[%clk 0:02:56]} 5. Bd2 {[%clk 0:02:51]}  Bd6 {[%clk 0:02:56]} 6. Bg2 {[%clk 0:02:51]}  O-O {[%clk 0:02:56]} 7. O-O {[%clk 0:02:51]}  Nbd7 {[%clk 0:02:57]} 8. Qc2 {[%clk 0:02:47]}  c6 {[%clk 0:02:57]} 9. Nc3 {[%clk 0:02:39]}  dxc4 {[%clk 0:02:57]} 10. e4 {[%clk 0:02:36]}  e5 {[%clk 0:02:57]} 11. a4 {[%clk 0:02:29]}  exd4 {[%clk 0:02:55]} 12. Nxd4 {[%clk 0:02:30]}  Ne5 {[%clk 0:02:54]} 13. Rad1 {[%clk 0:02:22]}  Bg4 {[%clk 0:02:48]} 14. f3 {[%clk 0:02:19]}  Bc5 {[%clk 0:02:48]} 15. Be3 {[%clk 0:02:15]}  Nd3 {[%clk 0:02:47]} 16. Rxd3 {[%clk 0:02:05]}  cxd3 {[%clk 0:02:46]} 17. Qxd3 {[%clk 0:02:06]}  Bxd4 {[%clk 0:02:38]} 18. Qxd4 {[%clk 0:01:59]}  Qxd4 {[%clk 0:02:39]} 19. Bxd4 {[%clk 0:01:59]}  Be6 {[%clk 0:02:39]} 20. Re1 {[%clk 0:01:40]}  Rfd8 {[%clk 0:02:38]} 21. Be3 {[%clk 0:01:40]}  Rd3 {[%clk 0:02:36]} 22. Bf1 {[%clk 0:01:38]}  Rd7 {[%clk 0:02:35]} 23. Kf2 {[%clk 0:01:35]}  Ne8 {[%clk 0:02:33]} 24. a5 {[%clk 0:01:32]}  Nd6 {[%clk 0:02:32]} 25. Na4 {[%clk 0:01:32]}  Bc4 {[%clk 0:02:31]} 26. Nc5 {[%clk 0:01:26]}  Re7 {[%clk 0:02:30]} 27. Bf4 {[%clk 0:01:22]}  Rd8 {[%clk 0:02:14]} 28. Bxd6 {[%clk 0:01:20]}  Rxd6 {[%clk 0:02:12]} 29. Bxc4 {[%clk 0:01:21]}  b6 {[%clk 0:02:13]} 30. axb6 {[%clk 0:01:21]}  axb6 {[%clk 0:02:13]} 31. Nb3 {[%clk 0:01:17]}  g6 {[%clk 0:02:11]} 32. Be2 {[%clk 0:01:13]}  Kg7 {[%clk 0:02:10]} 33. Rd1 {[%clk 0:01:12]}  Rxd1 {[%clk 0:02:08]} 34. Bxd1 {[%clk 0:01:13]}  Ra7 {[%clk 0:02:08]} 35. Nc1 {[%clk 0:01:09]}  Ra1 {[%clk 0:02:08]} 36. Nd3 {[%clk 0:01:05]}  Rxd1 {[%clk 0:02:08]} 37. Ke2 {[%clk 0:01:04]}  Rh1 {[%clk 0:02:08]} 38. h4 {[%clk 0:01:04]}  c5 {[%clk 0:02:04]} 39. Ne5 {[%clk 0:01:01]}  Rb1 {[%clk 0:02:03]} 40. Nc4 {[%clk 0:00:53]}  b5 {[%clk 0:02:02]} 41. Nd6 {[%clk 0:00:49]}  Rxb2+ {[%clk 0:02:02]} 0-1


[Site "https://www.chess.com"]

[Event "Titled Tuesday Blitz August 31 2021"]
[White "Karthikeyan, Murali"]
[Black "Firat, Burak"]
[WhiteFideId "5074452"]
[BlackFideId "6305881"]
[WhiteElo "2739"]
[BlackElo "2599"]
[Result "1-0"]
[Round "08"]
[TimeControl "180+1"]
[Date "2021.08.31"]
[WhiteClock "0:00:04"]
[BlackClock "0:00:05"]

1. Nf3 {[%clk 0:03:00]}  d5 {[%clk 0:02:59]} 2. g3 {[%clk 0:02:59]}  c6 {[%clk 0:03:00]} 3. Bg2 {[%clk 0:03:00]}  Nf6 {[%clk 0:03:01]} 4. h3 {[%clk 0:02:59]}  h6 {[%clk 0:03:00]} 5. g4 {[%clk 0:02:58]}  Nbd7 {[%clk 0:02:58]} 6. d4 {[%clk 0:02:59]}  e6 {[%clk 0:02:58]} 7. c4 {[%clk 0:02:57]}  Bd6 {[%clk 0:02:58]} 8. Nc3 {[%clk 0:02:56]}  a6 {[%clk 0:02:54]} 9. cxd5 {[%clk 0:02:49]}  exd5 {[%clk 0:02:51]} 10. Qc2 {[%clk 0:02:49]}  Nb6 {[%clk 0:02:48]} 11. Ne5 {[%clk 0:02:49]}  Qe7 {[%clk 0:02:33]} 12. Nd3 {[%clk 0:02:33]}  h5 {[%clk 0:02:20]} 13. g5 {[%clk 0:02:19]}  Nh7 {[%clk 0:02:00]} 14. h4 {[%clk 0:01:11]}  Bf5 {[%clk 0:01:59]} 15. Bd2 {[%clk 0:01:11]}  Nf8 {[%clk 0:01:48]} 16. O-O-O {[%clk 0:01:02]}  Ne6 {[%clk 0:01:44]} 17. e3 {[%clk 0:00:48]}  Nc4 {[%clk 0:01:40]} 18. Ne2 {[%clk 0:00:44]}  O-O {[%clk 0:01:16]} 19. Ng3 {[%clk 0:00:34]}  Bxg3 {[%clk 0:01:15]} 20. fxg3 {[%clk 0:00:35]}  Rad8 {[%clk 0:01:02]} 21. Rdf1 {[%clk 0:00:34]}  Bg6 {[%clk 0:01:01]} 22. g4 {[%clk 0:00:35]}  hxg4 {[%clk 0:00:52]} 23. Qc3 {[%clk 0:00:30]}  Nxd2 {[%clk 0:00:43]} 24. Qxd2 {[%clk 0:00:28]}  Bxd3 {[%clk 0:00:35]} 25. Qxd3 {[%clk 0:00:28]}  c5 {[%clk 0:00:32]} 26. Kb1 {[%clk 0:00:28]}  c4 {[%clk 0:00:31]} 27. Qf5 {[%clk 0:00:26]}  Nc7 {[%clk 0:00:22]} 28. Re1 {[%clk 0:00:11]}  c3 {[%clk 0:00:18]} 29. Qxg4 {[%clk 0:00:10]}  Qb4 {[%clk 0:00:17]} 30. Re2 {[%clk 0:00:11]}  Nb5 {[%clk 0:00:16]} 31. b3 {[%clk 0:00:08]}  Na3+ {[%clk 0:00:15]} 32. Kc1 {[%clk 0:00:09]}  c2 {[%clk 0:00:14]} 33. g6 {[%clk 0:00:03]}  fxg6 {[%clk 0:00:13]} 34. h5 {[%clk 0:00:03]}  g5 {[%clk 0:00:04]} 35. Qe6+ {[%clk 0:00:03]}  Rf7 {[%clk 0:00:01]} 36. Rf2 {[%clk 0:00:02]}  Rf8 {[%clk 0:00:02]} 37. Rxf7 {[%clk 0:00:02]}  Rxf7 {[%clk 0:00:03]} 38. Bxd5 {[%clk 0:00:02]}  Qc3 {[%clk 0:00:02]} 39. Qxf7+ {[%clk 0:00:03]}  Kh7 {[%clk 0:00:03]} 40. Qg6+ {[%clk 0:00:03]}  Kh8 {[%clk 0:00:03]} 41. Qe8+ {[%clk 0:00:04]}  Kh7 {[%clk 0:00:04]} 42. Bg8+ {[%clk 0:00:05]}  Kh6 {[%clk 0:00:05]} 43. Qg6# {[%clk 0:00:04]} 1-0


[Site "https://www.chess.com"]

[Event "Titled Tuesday Blitz August 31 2021"]
[White "Khanin, Semen"]
[Black "Krysa, Leandro"]
[WhiteFideId "4111990"]
[BlackFideId "116807"]
[WhiteElo "2521"]
[BlackElo "2490"]
[Result "0-1"]
[Round "08"]
[TimeControl "180+1"]
[Date "2021.08.31"]
[WhiteClock "0:00:01"]
[BlackClock "0:00:24"]

1. e4 {[%clk 0:03:00]}  c5 {[%clk 0:02:59]} 2. c3 {[%clk 0:03:00]}  Nf6 {[%clk 0:02:58]} 3. e5 {[%clk 0:03:01]}  Nd5 {[%clk 0:02:58]} 4. Bc4 {[%clk 0:03:01]}  Nb6 {[%clk 0:02:58]} 5. Bb3 {[%clk 0:03:02]}  Nc6 {[%clk 0:02:58]} 6. Nf3 {[%clk 0:03:01]}  d6 {[%clk 0:02:58]} 7. exd6 {[%clk 0:03:01]}  Qxd6 {[%clk 0:02:59]} 8. O-O {[%clk 0:03:01]}  Bf5 {[%clk 0:02:59]} 9. Na3 {[%clk 0:02:52]}  e6 {[%clk 0:02:55]} 10. d4 {[%clk 0:02:50]}  Qd7 {[%clk 0:02:43]} 11. dxc5 {[%clk 0:02:44]}  Bxc5 {[%clk 0:02:38]} 12. Nb5 {[%clk 0:02:41]}  Qxd1 {[%clk 0:02:29]} 13. Rxd1 {[%clk 0:02:41]}  O-O {[%clk 0:02:29]} 14. Nd6 {[%clk 0:02:39]}  Bxd6 {[%clk 0:02:14]} 15. Rxd6 {[%clk 0:02:39]}  Rfd8 {[%clk 0:02:13]} 16. Bf4 {[%clk 0:02:39]}  Rxd6 {[%clk 0:02:12]} 17. Bxd6 {[%clk 0:02:40]}  Rd8 {[%clk 0:02:13]} 18. Rd1 {[%clk 0:02:30]}  Bg4 {[%clk 0:01:56]} 19. Bc7 {[%clk 0:02:30]}  Rxd1+ {[%clk 0:01:54]} 20. Bxd1 {[%clk 0:02:30]}  Nc4 {[%clk 0:01:55]} 21. b3 {[%clk 0:02:28]}  N4e5 {[%clk 0:01:44]} 22. Bxe5 {[%clk 0:01:55]}  Nxe5 {[%clk 0:01:42]} 23. Nxe5 {[%clk 0:01:55]}  Bxd1 {[%clk 0:01:43]} 24. f4 {[%clk 0:01:40]}  f6 {[%clk 0:01:40]} 25. Nd7 {[%clk 0:01:39]}  Kf7 {[%clk 0:01:39]} 26. Kf2 {[%clk 0:01:31]}  Ke7 {[%clk 0:01:35]} 27. Nc5 {[%clk 0:01:31]}  b6 {[%clk 0:01:35]} 28. Nd3 {[%clk 0:01:30]}  Kd6 {[%clk 0:01:30]} 29. Ke3 {[%clk 0:01:30]}  Bc2 {[%clk 0:01:25]} 30. c4 {[%clk 0:01:10]}  h5 {[%clk 0:01:18]} 31. b4 {[%clk 0:01:06]}  h4 {[%clk 0:01:11]} 32. a3 {[%clk 0:00:31]}  Ba4 {[%clk 0:00:42]} 33. Kd4 {[%clk 0:00:26]}  Bc6 {[%clk 0:00:39]} 34. g3 {[%clk 0:00:27]}  hxg3 {[%clk 0:00:36]} 35. hxg3 {[%clk 0:00:27]}  Bg2 {[%clk 0:00:35]} 36. c5+ {[%clk 0:00:19]}  bxc5+ {[%clk 0:00:35]} 37. bxc5+ {[%clk 0:00:20]}  Kc6 {[%clk 0:00:33]} 38. a4 {[%clk 0:00:14]}  a5 {[%clk 0:00:33]} 39. Nb2 {[%clk 0:00:08]}  Bd5 {[%clk 0:00:32]} 40. Nd1 {[%clk 0:00:08]}  Bb3 {[%clk 0:00:29]} 41. Nc3 {[%clk 0:00:08]}  e5+ {[%clk 0:00:24]} 42. fxe5 {[%clk 0:00:08]}  fxe5+ {[%clk 0:00:24]} 43. Kxe5 {[%clk 0:00:08]}  Kxc5 {[%clk 0:00:25]} 44. g4 {[%clk 0:00:07]}  Kb4 {[%clk 0:00:25]} 45. Ne4 {[%clk 0:00:05]}  Bxa4 {[%clk 0:00:25]} 46. g5 {[%clk 0:00:04]}  Bc2 {[%clk 0:00:24]} 47. Nd6 {[%clk 0:00:02]}  a4 {[%clk 0:00:24]} 48. Kd4 {[%clk 0:00:01]}  a3 {[%clk 0:00:24]} 49. Nc4 {[%clk 0:00:01]}  a2 {[%clk 0:00:24]} 0-1


[Site "https://www.chess.com"]

[Event "Titled Tuesday Blitz August 31 2021"]
[White "Kollars, Dmitrij"]
[Black "Moroni, Luca Jr"]
[WhiteFideId "12909572"]
[BlackFideId "865834"]
[WhiteElo "2576"]
[BlackElo "2491"]
[Result "1/2-1/2"]
[Round "08"]
[TimeControl "180+1"]
[Date "2021.08.31"]
[WhiteClock "0:00:42"]
[BlackClock "0:00:23"]

1. e4 {[%clk 0:03:00]}  e5 {[%clk 0:02:59]} 2. Nf3 {[%clk 0:03:00]}  Nc6 {[%clk 0:03:00]} 3. Nc3 {[%clk 0:02:59]}  Nf6 {[%clk 0:03:00]} 4. d4 {[%clk 0:02:59]}  exd4 {[%clk 0:03:01]} 5. Nxd4 {[%clk 0:03:00]}  Bb4 {[%clk 0:03:01]} 6. Nxc6 {[%clk 0:03:00]}  bxc6 {[%clk 0:03:02]} 7. Bd3 {[%clk 0:03:01]}  d5 {[%clk 0:03:02]} 8. Bd2 {[%clk 0:03:01]}  O-O {[%clk 0:02:59]} 9. O-O {[%clk 0:03:01]}  Bxc3 {[%clk 0:02:58]} 10. Bxc3 {[%clk 0:03:02]}  dxe4 {[%clk 0:02:59]} 11. Bxf6 {[%clk 0:03:02]}  Qxf6 {[%clk 0:03:00]} 12. Bxe4 {[%clk 0:03:03]}  Qxb2 {[%clk 0:02:57]} 13. Bxc6 {[%clk 0:03:03]}  Rb8 {[%clk 0:02:57]} 14. Rb1 {[%clk 0:03:03]}  Qxb1 {[%clk 0:02:58]} 15. Qxb1 {[%clk 0:03:04]}  Rxb1 {[%clk 0:02:58]} 16. Rxb1 {[%clk 0:03:05]}  Rd8 {[%clk 0:02:53]} 17. h3 {[%clk 0:03:04]}  Kf8 {[%clk 0:02:53]} 18. Rb3 {[%clk 0:02:54]}  Be6 {[%clk 0:02:39]} 19. Ra3 {[%clk 0:02:45]}  Rd1+ {[%clk 0:02:31]} 20. Kh2 {[%clk 0:02:45]}  Rd2 {[%clk 0:02:32]} 21. Be4 {[%clk 0:02:35]}  f5 {[%clk 0:02:05]} 22. Rf3 {[%clk 0:01:55]}  Ke7 {[%clk 0:01:49]} 23. Bxf5 {[%clk 0:01:48]}  Bxf5 {[%clk 0:01:47]} 24. Rxf5 {[%clk 0:01:49]}  Rxc2 {[%clk 0:01:47]} 25. a4 {[%clk 0:01:49]}  c5 {[%clk 0:01:42]} 26. f4 {[%clk 0:01:43]}  a5 {[%clk 0:01:30]} 27. h4 {[%clk 0:01:24]}  Rc4 {[%clk 0:01:26]} 28. Kg3 {[%clk 0:01:24]}  g6 {[%clk 0:01:21]} 29. Re5+ {[%clk 0:01:18]}  Kd6 {[%clk 0:01:21]} 30. h5 {[%clk 0:01:19]}  Rxa4 {[%clk 0:01:02]} 31. hxg6 {[%clk 0:01:18]}  hxg6 {[%clk 0:01:03]} 32. Rg5 {[%clk 0:01:19]}  Ra1 {[%clk 0:00:52]} 33. Rxg6+ {[%clk 0:01:16]}  Kd7 {[%clk 0:00:52]} 34. Rg5 {[%clk 0:00:53]}  Kd6 {[%clk 0:00:51]} 35. Rg6+ {[%clk 0:00:54]}  Kd5 {[%clk 0:00:45]} 36. Rg5+ {[%clk 0:00:54]}  Kd6 {[%clk 0:00:23]} 37. Rg6+ {[%clk 0:00:42]} 1/2-1/2


[Site "https://www.chess.com"]

[Event "Titled Tuesday Blitz August 31 2021"]
[White "Krivonosov, Oleg"]
[Black "Danielian, Vardan"]
[WhiteFideId "11600349"]
[BlackFideId "13301594"]
[WhiteElo "2469"]
[BlackElo "2522"]
[Result "1-0"]
[Round "08"]
[TimeControl "180+1"]
[Date "2021.08.31"]
[WhiteClock "0:00:22"]
[BlackClock "0:00:01"]

1. Nf3 {[%clk 0:03:00]}  Nf6 {[%clk 0:02:59]} 2. c4 {[%clk 0:02:59]}  g6 {[%clk 0:02:59]} 3. Nc3 {[%clk 0:02:58]}  Bg7 {[%clk 0:02:59]} 4. e4 {[%clk 0:02:58]}  d6 {[%clk 0:02:59]} 5. d4 {[%clk 0:02:58]}  O-O {[%clk 0:02:59]} 6. Be2 {[%clk 0:02:58]}  c5 {[%clk 0:02:59]} 7. O-O {[%clk 0:02:57]}  Bg4 {[%clk 0:02:57]} 8. Be3 {[%clk 0:02:52]}  cxd4 {[%clk 0:02:57]} 9. Nxd4 {[%clk 0:02:51]}  Bxe2 {[%clk 0:02:57]} 10. Qxe2 {[%clk 0:02:49]}  Nc6 {[%clk 0:02:57]} 11. Rfd1 {[%clk 0:02:48]}  Nxd4 {[%clk 0:02:56]} 12. Bxd4 {[%clk 0:02:47]}  Rc8 {[%clk 0:02:53]} 13. b3 {[%clk 0:02:45]}  a6 {[%clk 0:02:52]} 14. Rac1 {[%clk 0:02:44]}  Nd7 {[%clk 0:02:38]} 15. Qd2 {[%clk 0:02:41]}  Bxd4 {[%clk 0:02:37]} 16. Qxd4 {[%clk 0:02:42]}  Qb6 {[%clk 0:02:36]} 17. Nd5 {[%clk 0:02:39]}  Qd8 {[%clk 0:02:21]} 18. h3 {[%clk 0:02:38]}  Ne5 {[%clk 0:02:11]} 19. f4 {[%clk 0:02:28]}  Nc6 {[%clk 0:02:04]} 20. Qb2 {[%clk 0:02:26]}  f5 {[%clk 0:02:00]} 21. exf5 {[%clk 0:02:15]}  Rxf5 {[%clk 0:01:54]} 22. Re1 {[%clk 0:02:10]}  e5 {[%clk 0:01:44]} 23. Rf1 {[%clk 0:01:51]}  exf4 {[%clk 0:00:54]} 24. Rxf4 {[%clk 0:01:44]}  Rxf4 {[%clk 0:00:54]} 25. Nxf4 {[%clk 0:01:44]}  Qg5 {[%clk 0:00:48]} 26. Rf1 {[%clk 0:01:42]}  Rf8 {[%clk 0:00:45]} 27. Qd2 {[%clk 0:01:34]}  Qc5+ {[%clk 0:00:26]} 28. Rf2 {[%clk 0:01:21]}  Ne5 {[%clk 0:00:22]} 29. Qd5+ {[%clk 0:01:06]}  Qxd5 {[%clk 0:00:21]} 30. Nxd5 {[%clk 0:01:07]}  Rxf2 {[%clk 0:00:21]} 31. Kxf2 {[%clk 0:01:08]}  Nd3+ {[%clk 0:00:21]} 32. Ke3 {[%clk 0:01:08]}  Ne5 {[%clk 0:00:19]} 33. Nf6+ {[%clk 0:01:03]}  Kf7 {[%clk 0:00:18]} 34. Nxh7 {[%clk 0:01:02]}  Nc6 {[%clk 0:00:18]} 35. Ng5+ {[%clk 0:01:01]}  Kf6 {[%clk 0:00:18]} 36. Nf3 {[%clk 0:01:00]}  Nb4 {[%clk 0:00:17]} 37. a4 {[%clk 0:00:58]}  d5 {[%clk 0:00:15]} 38. cxd5 {[%clk 0:00:49]}  Nxd5+ {[%clk 0:00:14]} 39. Ke4 {[%clk 0:00:49]}  Nc3+ {[%clk 0:00:14]} 40. Kd4 {[%clk 0:00:48]}  Ne2+ {[%clk 0:00:14]} 41. Kc5 {[%clk 0:00:46]}  Nc1 {[%clk 0:00:10]} 42. b4 {[%clk 0:00:42]}  Nd3+ {[%clk 0:00:09]} 43. Kc4 {[%clk 0:00:41]}  Nb2+ {[%clk 0:00:09]} 44. Kb3 {[%clk 0:00:40]}  Nd3 {[%clk 0:00:08]} 45. g4 {[%clk 0:00:37]}  Nf2 {[%clk 0:00:07]} 46. Kc4 {[%clk 0:00:34]}  Nxh3 {[%clk 0:00:07]} 47. Kc5 {[%clk 0:00:34]}  Nf2 {[%clk 0:00:05]} 48. Kb6 {[%clk 0:00:35]}  Nd3 {[%clk 0:00:05]} 49. b5 {[%clk 0:00:32]}  axb5 {[%clk 0:00:06]} 50. axb5 {[%clk 0:00:33]}  Ke6 {[%clk 0:00:03]} 51. Kxb7 {[%clk 0:00:30]}  Kd5 {[%clk 0:00:03]} 52. b6 {[%clk 0:00:29]}  Ke4 {[%clk 0:00:01]} 53. Nh4 {[%clk 0:00:22]} 1-0


[Site "https://www.chess.com"]

[Event "Titled Tuesday Blitz August 31 2021"]
[White "Maly, Alexey"]
[Black "Poormosavi, Seyed Kian"]
[WhiteFideId "14103184"]
[BlackFideId "12585807"]
[WhiteElo "2250"]
[BlackElo "2134"]
[Result "1-0"]
[Round "08"]
[TimeControl "180+1"]
[Date "2021.08.31"]
[WhiteClock "0:00:42"]
[BlackClock "0:01:36"]

1. d4 {[%clk 0:03:00]}  Nf6 {[%clk 0:02:59]} 2. c4 {[%clk 0:02:59]}  b6 {[%clk 0:02:59]} 3. Nf3 {[%clk 0:02:59]}  Bb7 {[%clk 0:03:00]} 4. g3 {[%clk 0:02:58]}  e6 {[%clk 0:03:00]} 5. Bg2 {[%clk 0:02:58]}  Bb4+ {[%clk 0:03:01]} 6. Nbd2 {[%clk 0:02:58]}  O-O {[%clk 0:03:00]} 7. O-O {[%clk 0:02:58]}  Re8 {[%clk 0:03:00]} 8. b3 {[%clk 0:02:57]}  Bf8 {[%clk 0:03:01]} 9. Bb2 {[%clk 0:02:58]}  d6 {[%clk 0:03:01]} 10. Qc1 {[%clk 0:02:58]}  Nbd7 {[%clk 0:03:01]} 11. Qc2 {[%clk 0:02:57]}  e5 {[%clk 0:03:01]} 12. e4 {[%clk 0:02:55]}  exd4 {[%clk 0:02:58]} 13. Nxd4 {[%clk 0:02:55]}  g6 {[%clk 0:02:59]} 14. Rfe1 {[%clk 0:02:52]}  Bg7 {[%clk 0:02:59]} 15. Rad1 {[%clk 0:02:50]}  a5 {[%clk 0:02:59]} 16. h3 {[%clk 0:02:50]}  Nc5 {[%clk 0:02:59]} 17. Kh2 {[%clk 0:02:46]}  a4 {[%clk 0:02:54]} 18. Bc3 {[%clk 0:02:42]}  axb3 {[%clk 0:02:54]} 19. axb3 {[%clk 0:02:42]}  Nfd7 {[%clk 0:02:29]} 20. Nf1 {[%clk 0:02:34]}  Ne6 {[%clk 0:02:28]} 21. Ne3 {[%clk 0:02:29]}  Nxd4 {[%clk 0:02:26]} 22. Bxd4 {[%clk 0:02:30]}  Bxd4 {[%clk 0:02:26]} 23. Rxd4 {[%clk 0:02:31]}  Qf6 {[%clk 0:02:26]} 24. Rd2 {[%clk 0:01:52]}  Nc5 {[%clk 0:02:17]} 25. Rdd1 {[%clk 0:01:16]}  Ra3 {[%clk 0:02:15]} 26. e5 {[%clk 0:01:10]}  dxe5 {[%clk 0:02:09]} 27. Bxb7 {[%clk 0:01:09]}  Nxb7 {[%clk 0:02:09]} 28. Nd5 {[%clk 0:01:05]}  Qf3 {[%clk 0:02:04]} 29. Re3 {[%clk 0:01:02]}  Ra2 {[%clk 0:01:51]} 30. Qxa2 {[%clk 0:00:54]}  Qxd1 {[%clk 0:01:50]} 31. Nf6+ {[%clk 0:00:53]}  Kf8 {[%clk 0:01:51]} 32. Nxe8 {[%clk 0:00:44]}  Kxe8 {[%clk 0:01:51]} 33. Rxe5+ {[%clk 0:00:43]}  Kf8 {[%clk 0:01:36]} 34. Qa8+ {[%clk 0:00:42]} 1-0


[Site "https://www.chess.com"]

[Event "Titled Tuesday Blitz August 31 2021"]
[White "Mirzoev, Azer"]
[Black "Isajevsky, Anton"]
[WhiteFideId "13400304"]
[BlackFideId "4142500"]
[WhiteElo "2525"]
[BlackElo "2510"]
[Result "0-1"]
[Round "08"]
[TimeControl "180+1"]
[Date "2021.08.31"]
[WhiteClock "0:00:20"]
[BlackClock "0:00:01"]

1. c4 {[%clk 0:02:59]}  c5 {[%clk 0:02:58]} 2. Nc3 {[%clk 0:02:58]}  g6 {[%clk 0:02:57]} 3. g3 {[%clk 0:02:58]}  Bg7 {[%clk 0:02:57]} 4. Bg2 {[%clk 0:02:59]}  Nc6 {[%clk 0:02:58]} 5. a3 {[%clk 0:02:59]}  d6 {[%clk 0:02:57]} 6. Rb1 {[%clk 0:02:59]}  Bf5 {[%clk 0:02:56]} 7. d3 {[%clk 0:02:59]}  Qc8 {[%clk 0:02:40]} 8. h4 {[%clk 0:02:58]}  Nf6 {[%clk 0:02:39]} 9. Bd2 {[%clk 0:02:57]}  O-O {[%clk 0:02:20]} 10. b4 {[%clk 0:02:55]}  Rb8 {[%clk 0:02:14]} 11. Nh3 {[%clk 0:02:53]}  Nd4 {[%clk 0:01:45]} 12. Nf4 {[%clk 0:02:51]}  Bg4 {[%clk 0:01:45]} 13. Qa4 {[%clk 0:02:33]}  a6 {[%clk 0:01:39]} 14. bxc5 {[%clk 0:02:30]}  dxc5 {[%clk 0:01:28]} 15. Be3 {[%clk 0:02:09]}  b5 {[%clk 0:01:09]} 16. Qd1 {[%clk 0:02:04]}  bxc4 {[%clk 0:01:04]} 17. dxc4 {[%clk 0:02:03]}  Rxb1 {[%clk 0:01:03]} 18. Nxb1 {[%clk 0:01:53]}  e5 {[%clk 0:00:53]} 19. Nd5 {[%clk 0:01:45]}  Nxd5 {[%clk 0:00:50]} 20. cxd5 {[%clk 0:01:44]}  Bxe2 {[%clk 0:00:46]} 21. Qc1 {[%clk 0:01:42]}  Bf3 {[%clk 0:00:22]} 22. Bxf3 {[%clk 0:01:40]}  Nxf3+ {[%clk 0:00:21]} 23. Kf1 {[%clk 0:01:41]}  e4 {[%clk 0:00:20]} 24. Nd2 {[%clk 0:01:35]}  Nxd2+ {[%clk 0:00:20]} 25. Qxd2 {[%clk 0:01:35]}  Rd8 {[%clk 0:00:20]} 26. Kg2 {[%clk 0:01:34]}  Bd4 {[%clk 0:00:14]} 27. Bxd4 {[%clk 0:01:26]}  Rxd5 {[%clk 0:00:13]} 28. Rc1 {[%clk 0:01:21]}  Qd7 {[%clk 0:00:13]} 29. Qf4 {[%clk 0:01:16]}  cxd4 {[%clk 0:00:11]} 30. Qxe4 {[%clk 0:00:54]}  d3 {[%clk 0:00:11]} 31. Rd1 {[%clk 0:00:54]}  d2 {[%clk 0:00:11]} 32. Qe3 {[%clk 0:00:52]}  Rd3 {[%clk 0:00:10]} 33. Qe2 {[%clk 0:00:52]}  Qd5+ {[%clk 0:00:09]} 34. Kg1 {[%clk 0:00:51]}  a5 {[%clk 0:00:09]} 35. a4 {[%clk 0:00:51]}  h5 {[%clk 0:00:09]} 36. Qe8+ {[%clk 0:00:45]}  Kg7 {[%clk 0:00:09]} 37. Qe2 {[%clk 0:00:46]}  Rd4 {[%clk 0:00:05]} 38. Kh2 {[%clk 0:00:45]}  Qd6 {[%clk 0:00:04]} 39. Kg1 {[%clk 0:00:44]}  Qd5 {[%clk 0:00:03]} 40. Kh2 {[%clk 0:00:43]}  Rxa4 {[%clk 0:00:03]} 41. Rxd2 {[%clk 0:00:43]}  Rd4 {[%clk 0:00:03]} 42. Ra2 {[%clk 0:00:36]}  a4 {[%clk 0:00:03]} 43. Ra3 {[%clk 0:00:20]}  Rd1 {[%clk 0:00:02]} 44. Qe3 {[%clk 0:00:20]}  Qh1# {[%clk 0:00:01]} 0-1


[Site "https://www.chess.com"]

[Event "Titled Tuesday Blitz August 31 2021"]
[White "Mortazavi, Ali"]
[Black "Shishkov, Andrei"]
[WhiteFideId "401323"]
[BlackFideId "4500563"]
[WhiteElo "2339"]
[BlackElo "2322"]
[Result "0-1"]
[Round "08"]
[TimeControl "180+1"]
[Date "2021.08.31"]
[WhiteClock "0:00:22"]
[BlackClock "0:00:09"]

1. Nf3 {[%clk 0:03:00]}  Nf6 {[%clk 0:02:57]} 2. g3 {[%clk 0:03:01]}  b5 {[%clk 0:02:57]} 3. Bg2 {[%clk 0:03:01]}  Bb7 {[%clk 0:02:57]} 4. O-O {[%clk 0:03:02]}  e6 {[%clk 0:02:57]} 5. c3 {[%clk 0:03:02]}  c5 {[%clk 0:02:56]} 6. a4 {[%clk 0:03:02]}  b4 {[%clk 0:02:56]} 7. d4 {[%clk 0:03:02]}  cxd4 {[%clk 0:02:54]} 8. cxd4 {[%clk 0:03:00]}  Be7 {[%clk 0:02:53]} 9. Nbd2 {[%clk 0:02:53]}  O-O {[%clk 0:02:48]} 10. Nb3 {[%clk 0:02:53]}  d6 {[%clk 0:02:34]} 11. a5 {[%clk 0:02:48]}  a6 {[%clk 0:02:33]} 12. Ne1 {[%clk 0:02:36]}  Bxg2 {[%clk 0:02:30]} 13. Kxg2 {[%clk 0:02:36]}  Nc6 {[%clk 0:02:24]} 14. Nd3 {[%clk 0:02:27]}  Qb8 {[%clk 0:02:20]} 15. Bg5 {[%clk 0:02:18]}  h6 {[%clk 0:02:16]} 16. Bxf6 {[%clk 0:02:18]}  Bxf6 {[%clk 0:02:16]} 17. e3 {[%clk 0:02:14]}  Qb5 {[%clk 0:02:08]} 18. f3 {[%clk 0:01:57]}  Rfc8 {[%clk 0:01:25]} 19. Rf2 {[%clk 0:01:56]}  Rc7 {[%clk 0:01:20]} 20. Rc1 {[%clk 0:01:47]}  Rac8 {[%clk 0:01:20]} 21. Rfc2 {[%clk 0:01:42]}  Bd8 {[%clk 0:01:20]} 22. Qd2 {[%clk 0:01:09]}  Nxa5 {[%clk 0:01:19]} 23. Nxa5 {[%clk 0:01:08]}  Rxc2 {[%clk 0:01:02]} 24. Rxc2 {[%clk 0:01:08]}  Rxc2 {[%clk 0:01:02]} 25. Qxc2 {[%clk 0:01:08]}  Bxa5 {[%clk 0:01:01]} 26. Qc8+ {[%clk 0:01:06]}  Kh7 {[%clk 0:01:01]} 27. Nf4 {[%clk 0:01:02]}  g5 {[%clk 0:00:46]} 28. Qc2+ {[%clk 0:00:58]}  Kg8 {[%clk 0:00:27]} 29. Qc8+ {[%clk 0:00:55]}  Kh7 {[%clk 0:00:22]} 30. Qc2+ {[%clk 0:00:54]}  Kg8 {[%clk 0:00:17]} 31. Nh5 {[%clk 0:00:55]}  b3 {[%clk 0:00:14]} 32. Qc8+ {[%clk 0:00:50]}  Kh7 {[%clk 0:00:14]} 33. Nf6+ {[%clk 0:00:29]}  Kg6 {[%clk 0:00:14]} 34. Ne4 {[%clk 0:00:27]}  Qe2+ {[%clk 0:00:13]} 35. Nf2 {[%clk 0:00:27]}  Be1 {[%clk 0:00:13]} 36. Qg8+ {[%clk 0:00:26]}  Kf6 {[%clk 0:00:13]} 37. Qd8+ {[%clk 0:00:26]}  Kg7 {[%clk 0:00:13]} 38. Qxd6 {[%clk 0:00:23]}  Qxf2+ {[%clk 0:00:13]} 39. Kh3 {[%clk 0:00:24]}  Qxe3 {[%clk 0:00:13]} 40. Kg4 {[%clk 0:00:22]}  f5+ {[%clk 0:00:12]} 41. Kh3 {[%clk 0:00:21]}  Kg6 {[%clk 0:00:08]} 42. Qf8 {[%clk 0:00:18]}  g4+ {[%clk 0:00:08]} 43. fxg4 {[%clk 0:00:17]}  fxg4+ {[%clk 0:00:08]} 44. Kxg4 {[%clk 0:00:17]}  Qg5+ {[%clk 0:00:08]} 45. Kh3 {[%clk 0:00:18]}  Qf5+ {[%clk 0:00:08]} 46. Qxf5+ {[%clk 0:00:17]}  Kxf5 {[%clk 0:00:09]} 47. Kh4 {[%clk 0:00:18]}  Bd2 {[%clk 0:00:08]} 48. Kh5 {[%clk 0:00:19]}  Ke4 {[%clk 0:00:08]} 49. g4 {[%clk 0:00:19]}  Kxd4 {[%clk 0:00:08]} 50. h4 {[%clk 0:00:20]}  e5 {[%clk 0:00:08]} 51. g5 {[%clk 0:00:21]}  hxg5 {[%clk 0:00:08]} 52. hxg5 {[%clk 0:00:22]}  Bxg5 {[%clk 0:00:09]} 53. Kxg5 {[%clk 0:00:22]}  e4 {[%clk 0:00:09]} 0-1


[Site "https://www.chess.com"]